bitfinex-derivatives/quotes_SOLF0:USTF0_20241101
["timestamp","ask_amount","ask_price","bid_price","bid_amount"]
[1730435110961,2.9889,167.46,167.43,1.3176]
[1730435115466,8.28339426,167.49,167.43,1.3176]
[1730435117969,2.9889,167.47,167.43,1.3176]
[1730435118466,2.9891,167.45,167.41,27.57763486]
[1730435118673,2.9891,167.45,167.41,11.06339426]
[1730435118862,8.28339426,167.46,167.39,8.28339426]
[1730435119056,5.79149318,167.5,167.39,11.06339426]
[1730435119057,2.9895,167.43,167.39,11.06339426]
[1730435120563,8.28339426,167.44,167.39,11.06339426]
[1730435120564,2.9896,167.42,167.39,11.06339426]
[1730435121273,2.9898,167.41,167.39,2.78]
[1730435121474,2.9898,167.41,167.37,9.56169426]
[1730435121672,2.9898,167.41,167.36,5.7706]
[1730435121673,8.28339426,167.41,167.36,8.28339426]
[1730435121969,2.99,167.4,167.36,11.06339426]
[1730435129472,2.99,167.4,167.36,2.78]
[1730435130877,8.28339426,167.41,167.36,14.05399426]
[1730435131476,11.27329426,167.41,167.36,11.06339426]
[1730435131872,8.28339426,167.41,167.36,11.06339426]
[1730435132973,2.9902,167.39,167.36,11.06339426]
[1730435133379,8.28339426,167.41,167.36,11.06339426]
[1730435133584,2.99,167.4,167.36,11.06339426]
[1730435136477,2.99,167.4,167.37,8.28339426]
[1730435138982,11.27339426,167.4,167.36,4.0435]
[1730435139186,2.9903,167.39,167.36,2.78]
[1730435143189,2.9903,167.39,167.34,11.27439426]
[1730435144092,2.9903,167.39,167.34,14.05439426]
[1730435151493,2.9903,167.39,167.36,8.28339426]
[1730435155089,2.99,167.4,167.36,8.28339426]
[1730435155299,8.28339426,167.41,167.36,8.28339426]
[1730435155595,8.28339426,167.44,167.39,8.28339426]
[1730435155895,2.9896,167.43,167.39,8.28339426]
[1730435156496,8.28339426,167.44,167.39,8.28339426]
[1730435156694,2.9896,167.42,167.39,8.28339426]
[1730435158292,2.9896,167.42,167.38,4.0699]
[1730435164100,11.27279426,167.43,167.38,5.3892]
[1730435164897,2.9897,167.42,167.38,5.3892]
[1730435165107,8.28339426,167.41,167.38,5.3892]
[1730435165904,11.27319426,167.41,167.38,5.3892]
[1730435174219,2.9896,167.42,167.38,5.3892]
[1730435175705,2.9901,167.4,167.38,2.6092]
[1730435175909,11.27349426,167.4,167.35,2.78]
[1730435178418,8.28339426,167.4,167.35,2.78]
[1730435178817,8.28339426,167.38,167.32,11.01699426]
[1730435179021,8.28339426,167.37,167.33,2.78]
[1730435179225,2.9908,167.36,167.33,2.78]
[1730435184731,2.9903,167.39,167.35,8.28339426]
[1730435184930,8.28339426,167.41,167.35,8.28339426]
[1730435185328,2.9901,167.4,167.35,8.28339426]
[1730435189916,2.9901,167.4,167.35,11.27419426]
[1730435191620,2.78,167.45,167.35,8.28339426]
[1730435191824,2.9902,167.39,167.35,8.28339426]
[1730435192027,2.9902,167.39,167.34,8.28339426]
[1730435192327,2.9902,167.39,167.35,1.49623484]
[1730435192534,2.9902,167.39,167.34,8.28339426]
[1730435192730,2.9902,167.39,167.35,1.4962315]
[1730435192932,2.9902,167.39,167.34,8.28339426]
[1730435193132,2.9902,167.39,167.35,1.4962315]
[1730435193319,2.9902,167.39,167.34,11.27439426]
[1730435193520,2.9902,167.39,167.35,1.49622503]
[1730435193720,2.9902,167.39,167.34,11.27439426]
[1730435193921,2.9902,167.39,167.35,1.49622836]
[1730435194228,2.9902,167.39,167.34,11.27439426]
[1730435194440,2.9902,167.39,167.35,1.49623484]
[1730435194733,2.78,167.45,167.33,2.78]
[1730435194734,2.9905,167.37,167.33,2.78]
[1730435194931,8.28339426,167.38,167.34,1.49627833]
[1730435195234,2.9906,167.37,167.33,2.78]
[1730435195530,2.9906,167.37,167.34,1.49630461]
[1730435195723,2.9906,167.37,167.33,2.78]
[1730435195924,2.9906,167.37,167.34,1.49630814]
[1730435196130,2.9906,167.37,167.33,2.78]
[1730435196329,2.9906,167.37,167.34,1.49630814]
[1730435196530,2.9906,167.37,167.33,2.78]
[1730435196733,2.9906,167.37,167.34,1.49630814]
[1730435196927,2.9906,167.37,167.33,2.78]
[1730435197128,2.9906,167.37,167.34,1.49630816]
[1730435197328,2.9906,167.37,167.33,2.78]
[1730435197523,2.9906,167.37,167.34,1.49630816]
[1730435197734,2.9906,167.37,167.33,2.78]
[1730435197931,2.9906,167.37,167.34,1.49630816]
[1730435198235,2.9906,167.37,167.34,8.28339426]
[1730435203737,2.9906,167.37,167.33,2.78]
[1730435219551,2.9906,167.37,167.32,14.00829426]
[1730435219854,2.9906,167.37,167.33,2.78]
[1730435220854,8.28339426,167.35,167.31,2.78]
[1730435221054,8.28339426,167.35,167.3,2.78]
[1730435221446,2.9912,167.33,167.3,2.78]
[1730435222042,2.9912,167.33,167.29,8.28339426]
[1730435222242,2.9912,167.33,167.29,11.06339426]
[1730435222450,11.27459426,167.33,167.29,2.78]
[1730435226949,2.9916,167.31,167.27,2.6633]
[1730435227150,11.27499426,167.31,167.28,1.49663317]
[1730435227351,11.27499426,167.31,167.27,1.3317]
[1730435227557,11.27499426,167.31,167.28,1.49669076]
[1730435227757,11.27499426,167.31,167.26,5.7724]
[1730435227951,11.27499426,167.31,167.27,1.49669076]
[1730435228152,11.27499426,167.31,167.28,1.49669076]
[1730435228358,11.27499426,167.31,167.26,2.78]
[1730435228555,11.27539426,167.29,167.27,1.49669935]
[1730435228753,8.28339426,167.29,167.24,2.78]
[1730435228957,8.28339426,167.29,167.25,1.49683265]
[1730435229162,2.9923,167.27,167.23,13.68899426]
[1730435229365,2.9923,167.27,167.24,1.49692211]
[1730435229570,2.9923,167.27,167.23,13.68899426]
[1730435229861,2.9923,167.27,167.24,1.4969557]
[1730435230072,2.9923,167.27,167.23,13.68899426]
[1730435230568,2.9923,167.27,167.24,1.496966]
[1730435230771,2.9923,167.27,167.23,13.68899426]
[1730435231063,2.9923,167.27,167.24,1.496966]
[1730435231251,2.9923,167.27,167.23,13.68899426]
[1730435233360,2.9923,167.27,167.23,5.4056]
[1730435233556,2.9926,167.26,167.23,4.1235]
[1730435233967,2.9926,167.26,167.22,8.28339426]
[1730435234261,11.27599426,167.26,167.22,11.06339426]
[1730435234452,11.27599426,167.26,167.21,5.7732]
[1730435238564,2.9928,167.24,167.2,11.06339426]
[1730435239363,2.9928,167.24,167.2,2.78]
[1730435243976,8.28339426,167.24,167.19,1.3741]
[1730435244267,2.9931,167.23,167.18,16.75869426]
[1730435246169,2.9931,167.23,167.18,13.76499426]
[1730435246373,2.9932,167.22,167.18,13.76499426]
[1730435249468,2.9932,167.22,167.18,10.98499426]
[1730435249668,2.9932,167.22,167.18,13.76499426]
[1730435250666,8.28339426,167.22,167.18,5.4816]
[1730435250869,2.9935,167.21,167.18,2.7016]
[1730435254166,8.28339426,167.22,167.18,2.7016]
[1730435254379,8.28339426,167.22,167.18,5.6953]
[1730435256570,11.27659426,167.22,167.18,2.7016]
[1730435256775,8.28339426,167.21,167.18,2.7016]
[1730435258285,8.28339426,167.2,167.17,2.78]
[1730435258983,8.28339426,167.18,167.13,10.96729426]
[1730435259281,8.28339426,167.18,167.14,2.78]
[1730435259481,8.28339426,167.18,167.14,5.7746]
[1730435266600,11.27729426,167.18,167.14,2.78]
[1730435268106,11.27769426,167.16,167.11,11.27849426]
[1730435268304,11.27769426,167.16,167.11,14.05849426]
[1730435268687,2.9944,167.15,167.11,14.05849426]
[1730435269297,11.27799426,167.15,167.1,5.7753]
[1730435269994,2.9946,167.14,167.1,5.7753]
[1730435270800,8.28339426,167.13,167.09,2.9954]
[1730435278695,8.28339426,167.13,167.08,8.28339426]
[1730435278900,11.27849426,167.12,167.06,8.28339426]
[1730435279906,11.27849426,167.12,167.07,2.9958]
[1730435280306,8.28339426,167.12,167.06,8.28339426]
[1730435281511,8.28339426,167.12,167.06,11.27939426]
[1730435281512,2.9954,167.1,167.06,11.27939426]
[1730435282413,2.9955,167.09,167.06,8.28339426]
[1730435282603,8.28339426,167.13,167.08,8.28339426]
[1730435282804,8.28339426,167.15,167.09,8.28339426]
[1730435283011,2.995,167.12,167.09,8.28339426]
[1730435283315,8.28339426,167.15,167.09,8.28339426]
[1730435284011,8.28339426,167.14,167.08,8.28339426]
[1730435284407,2.9948,167.13,167.08,11.27899426]
[1730435284615,8.28339426,167.15,167.1,8.28339426]
[1730435286315,11.27789426,167.15,167.1,11.27869426]
[1730435286817,8.28339426,167.15,167.1,8.28339426]
[1730435287124,2.9949,167.13,167.09,8.28339426]
[1730435288122,8.28339426,167.14,167.09,11.27889426]
[1730435288427,11.27809426,167.14,167.09,11.27889426]
[1730435289724,2.9947,167.14,167.1,8.28339426]
[1730435289937,2.9943,167.16,167.11,11.27849426]
[1730435290121,8.28339426,167.17,167.11,8.28339426]
[1730435290432,8.28339426,167.17,167.06,1.3557]
[1730435290433,11.06339426,167.18,167.13,8.28339426]
[1730435290624,8.28339426,167.18,167.13,8.28339426]
[1730435291118,2.9942,167.17,167.13,8.28339426]
[1730435294225,8.28339426,167.16,167.12,2.9949]
[1730435298240,2.9942,167.17,167.12,11.27829426]
[1730435303143,8.28339426,167.18,167.12,8.28339426]
[1730435303640,8.28339426,167.18,167.14,2.9946]
[1730435304344,11.27729426,167.18,167.13,2.9946]
[1730435309644,8.28339426,167.19,167.14,8.28339426]
[1730435309844,11.27709426,167.19,167.14,8.28339426]
[1730435310245,8.28339426,167.19,167.15,2.9943]
[1730435310745,8.28339426,167.19,167.14,8.28339426]
[1730435310946,8.28339426,167.19,167.15,1.3161]
[1730435312041,8.28339426,167.19,167.15,4.3105]
[1730435318961,11.27679426,167.21,167.16,2.9942]
[1730435319349,8.28339426,167.21,167.15,1.3161]
[1730435319945,2.9935,167.2,167.15,4.3104]
[1730435320146,8.28339426,167.21,167.15,1.3161]
[1730435320347,44.75432701,167.22,167.17,8.28339426]
[1730435320653,2.9934,167.21,167.17,8.28339426]
[1730435321760,8.28339426,167.2,167.15,1.3161]
[1730435323353,2.9937,167.19,167.15,1.3161]
[1730435330158,2.9936,167.2,167.16,2.9942]
[1730435330863,11.27699426,167.2,167.16,2.9942]
[1730435332762,2.9937,167.19,167.15,9.59949426]
[1730435337157,2.9936,167.2,167.15,12.59389426]
[1730435346773,8.28339426,167.21,167.16,8.28339426]
[1730435346774,2.9934,167.21,167.16,8.28339426]
[1730435348076,2.9934,167.21,167.16,11.27759426]
[1730435348277,36.47093275,167.22,167.16,8.28339426]
[1730435348578,2.9934,167.21,167.16,8.28339426]
[1730435349378,2.9934,167.21,167.16,11.27759426]
[1730435350674,36.47093275,167.22,167.15,1.3161]
[1730435350874,39.46413275,167.22,167.18,8.28339426]
[1730435352365,39.46413275,167.22,167.18,11.27719426]
[1730435352366,36.47093275,167.22,167.18,11.27719426]
[1730435352571,36.47093275,167.22,167.19,8.28339426]
[1730435356175,36.47093275,167.22,167.19,11.27709426]
[1730435356381,8.28339426,167.26,167.21,8.28339426]
[1730435357371,2.9927,167.25,167.21,8.28339426]
[1730435358481,2.78,167.28,167.21,8.28339426]
[1730435358482,18.08017714,167.28,167.21,8.28339426]
[1730435358784,2.9925,167.26,167.21,11.27669426]
[1730435362874,11.27589426,167.26,167.21,11.27669426]
[1730435363584,8.28339426,167.26,167.21,11.27669426]
[1730435363776,2.9926,167.25,167.21,8.28339426]
[1730435363978,8.28339426,167.23,167.18,11.27729426]
[1730435365070,11.27649426,167.23,167.18,11.27729426]
[1730435366989,2.9931,167.23,167.18,11.27729426]
[1730435370993,8.28339426,167.25,167.18,11.27729426]
[1730435371591,2.9932,167.23,167.18,11.27729426]
[1730435374992,2.993,167.23,167.18,11.27729426]
[1730435382793,8.28339426,167.25,167.18,8.28339426]
[1730435382991,2.9933,167.22,167.18,8.28339426]
[1730435387808,8.28339426,167.23,167.17,2.78]
[1730435387999,8.28339426,167.22,167.16,10.92789426]
[1730435388703,8.28339426,167.22,167.16,1.3861]
[1730435390309,2.9937,167.2,167.16,1.3861]
[1730435391601,11.27709426,167.2,167.16,1.3861]
[1730435396512,2.9937,167.19,167.16,1.3861]
[1730435398817,8.28339426,167.2,167.16,1.3861]
[1730435399012,11.27699426,167.2,167.16,1.3861]
[1730435399403,8.28339426,167.2,167.16,1.3861]
[1730435399618,2.9938,167.19,167.16,1.3861]
[1730435400410,2.9939,167.19,167.15,9.59949426]
[1730435400618,8.28339426,167.17,167.12,8.28339426]
[1730435400823,8.28339426,167.15,167.11,1.3553]
[1730435401009,8.28339426,167.15,167.09,12.40139426]
[1730435401010,2.9947,167.14,167.09,12.40139426]
[1730435401215,2.9947,167.14,167.1,1.49814363]
[1730435401430,2.9947,167.14,167.09,9.64139426]
[1730435403821,8.28339426,167.13,167.08,8.28339426]
[1730435404027,11.27829426,167.13,167.08,8.28339426]
[1730435405034,2.9953,167.11,167.06,8.28339426]
[1730435406630,2.9953,167.11,167.06,8.22095169]
[1730435408741,8.28339426,167.1,167.05,12.39869426]
[1730435409037,2.9955,167.09,167.05,12.39869426]
[1730435409344,11.27889426,167.09,167.05,12.39869426]
[1730435411737,2.9957,167.08,167.05,12.39869426]
[1730435414450,2.9957,167.08,167.05,4.1153]
[1730435416054,8.28339426,167.11,167.05,12.39869426]
[1730435416245,8.28339426,167.11,167.06,8.28339426]
[1730435417243,2.9953,167.1,167.06,8.28339426]
[1730435422346,2.9953,167.1,167.06,11.27939426]
[1730435428457,2.9953,167.1,167.06,2.996]
[1730435428657,2.76,167.14,167.05,4.1153]
[1730435428658,11.27909426,167.08,167.05,4.1153]
[1730435428857,11.27909426,167.08,167.03,11.27989426]
[1730435429253,2.9959,167.07,167.03,11.27989426]
[1730435430771,2.9961,167.06,167.02,11.28009426]
[1730435432061,2.9958,167.08,167.04,8.28339426]
[1730435433260,2.9958,167.08,167.04,11.27969426]
[1730435433466,2.76,167.12,167.07,8.28339426]
[1730435433866,2.9953,167.11,167.07,8.28339426]
[1730435434171,8.28339426,167.11,167.06,8.28339426]
[1730435435373,2.9953,167.1,167.06,8.28339426]
[1730435436462,8.28339426,167.1,167.04,8.28339426]
[1730435436970,2.9959,167.07,167.03,8.28339426]
[1730435437871,2.9959,167.07,167.03,11.27999426]
[1730435439466,2.9956,167.09,167.05,8.28339426]
[1730435447577,2.9957,167.08,167.05,8.28339426]
[1730435448480,8.28339426,167.1,167.05,8.28339426]
[1730435448669,11.27889426,167.1,167.05,11.27959426]
[1730435448873,2.76,167.13,167.01,6.7525]
[1730435448874,8.28339426,167.12,167.06,8.28339426]
[1730435449075,8.28339426,167.12,167.07,1.3472]
[1730435449682,11.27849426,167.12,167.07,1.3472]
[1730435453988,2.76,167.13,167.08,8.28339426]
[1730435453989,8.28339426,167.13,167.08,8.28339426]
[1730435454180,8.28339426,167.13,167.09,2.9955]
[1730435454881,2.9948,167.14,167.09,11.27889426]
[1730435455196,2.9948,167.13,167.09,11.27889426]
[1730435455385,2.9948,167.13,167.09,8.28339426]
[1730435458583,11.27819426,167.13,167.08,11.27899426]
[1730435458991,8.28339426,167.12,167.08,11.27899426]
[1730435461684,2.9948,167.13,167.08,11.27899426]
[1730435462075,36.48673366,167.15,167.1,2.9953]
[1730435462076,47.76472792,167.15,167.1,2.9953]
[1730435462280,44.77012792,167.15,167.1,2.9953]
[1730435462478,47.76472792,167.15,167.1,2.9953]
[1730435464091,11.27809426,167.14,167.09,11.27889426]
[1730435464287,8.28339426,167.14,167.09,8.28339426]
[1730435464883,8.28339426,167.14,167.07,9.63059426]
[1730435465287,2.9949,167.13,167.08,2.9957]
[1730435468489,8.28339426,167.14,167.08,2.9957]
[1730435468795,2.995,167.12,167.08,2.9957]
[1730435470491,8.28339426,167.12,167.07,9.63059426]
[1730435470700,8.28339426,167.1,167.07,1.3472]
[1730435470998,8.28339426,167.1,167.06,9.54749426]
[1730435472390,11.27879426,167.1,167.06,12.54349426]
[1730435473295,8.28339426,167.12,167.07,8.28339426]
[1730435473498,2.9951,167.12,167.08,2.9956]
[1730435475097,8.28339426,167.13,167.09,8.28339426]
[1730435477300,8.28339426,167.13,167.09,11.27869426]
[1730435479192,11.27819426,167.13,167.09,11.27869426]
[1730435480102,11.27819426,167.13,167.09,8.28339426]
[1730435480294,8.28339426,167.12,167.07,9.59899426]
[1730435480485,8.28339426,167.1,167.07,1.3156]
[1730435481092,11.27879426,167.1,167.07,1.3156]
[1730435483602,2.9954,167.1,167.07,1.3156]
[1730435485401,2.9952,167.11,167.07,1.3156]
[1730435486099,8.28339426,167.12,167.07,9.59899426]
[1730435486396,2.9948,167.13,167.07,9.59899426]
[1730435487304,2.9948,167.13,167.08,2.9956]
[1730435490805,11.27819426,167.13,167.08,2.9956]
[1730435493112,8.28339426,167.13,167.08,2.9956]
[1730435493416,2.995,167.12,167.08,2.9956]
[1730435493618,8.28339426,167.1,167.05,5.7561]
[1730435494203,11.27879426,167.1,167.05,5.7561]
[1730435494606,8.28339426,167.11,167.05,2.76]
[1730435494913,2.995,167.12,167.08,2.9957]
[1730435495116,8.28339426,167.14,167.07,8.28339426]
[1730435495412,0.9268,167.23,167.05,2.76]
[1730435495413,8.28339426,167.17,167.12,8.28339426]
[1730435495815,11.27749426,167.17,167.13,11.27819426]
[1730435496001,0.9268,167.23,167.14,8.28339426]
[1730435496002,11.28321759,167.2,167.14,8.28339426]
[1730435496198,8.28339426,167.2,167.14,8.28339426]
[1730435497313,2.9937,167.19,167.14,11.27799426]
[1730435498707,8.28339426,167.22,167.16,8.28339426]
[1730435500417,2.9934,167.21,167.16,11.27759426]
[1730435500809,11.27709426,167.2,167.14,13.82109426]
[1730435501019,8.28339426,167.18,167.13,11.04339426]
[1730435501525,11.27739426,167.18,167.13,11.04339426]
[1730435501726,8.28339426,167.19,167.14,8.28339426]
[1730435503324,2.9939,167.18,167.14,8.28339426]
[1730435504926,2.9937,167.2,167.15,8.28339426]
[1730435505429,8.28339426,167.21,167.15,8.28339426]
[1730435505725,11.27689426,167.21,167.15,11.27769426]
[1730435506031,8.28339426,167.21,167.15,11.27769426]
[1730435506330,8.28339426,167.21,167.15,8.28339426]
[1730435506527,11.27689426,167.21,167.15,11.27779426]
[1730435511839,2.9936,167.2,167.15,11.27779426]
[1730435515839,2.9945,167.15,167.1,2.9953]
[1730435516135,11.27789426,167.15,167.1,2.9953]
[1730435516331,8.28339426,167.15,167.09,2.5987]
[1730435516529,2.9947,167.14,167.09,5.5942]
[1730435519741,8.28339426,167.15,167.09,2.5987]
[1730435520044,5.81375649,167.2,167.08,19.33260145]
[1730435520045,8.28339426,167.12,167.08,19.33260145]
[1730435520641,2.9953,167.11,167.07,1.3732]
[1730435521034,8.28339426,167.12,167.07,1.3732]
[1730435521237,2.76,167.16,167.07,1.3732]
[1730435521238,11.27889426,167.1,167.07,1.3732]
[1730435521633,2.9955,167.09,167.06,2.76]
[1730435523746,2.9955,167.09,167.04,11.27979426]
[1730435525537,11.27869426,167.1,167.06,8.28339426]
[1730435525742,2.9953,167.1,167.06,8.28339426]
[1730435526842,11.27839426,167.12,167.07,11.27919426]
[1730435527048,2.995,167.12,167.07,11.27919426]
[1730435527844,11.27839426,167.12,167.07,11.27919426]
[1730435528547,2.9951,167.11,167.06,8.28339426]
[1730435528744,2.9951,167.11,167.06,11.27939426]
[1730435528745,11.27849426,167.11,167.06,11.27939426]
[1730435532753,8.28339426,167.09,167.05,8.28339426]
[1730435533053,8.28339426,167.09,167.04,2.6668]
[1730435533543,11.27889426,167.09,167.04,5.6631]
[1730435534553,11.27889426,167.09,167.04,13.94649426]
[1730435538360,8.28339426,167.09,167.04,10.95019426]
[1730435538658,2.9958,167.08,167.04,10.95019426]
[1730435539160,2.9958,167.08,167.04,2.6668]
[1730435541256,8.28339426,167.09,167.04,2.6668]
[1730435541478,11.27889426,167.09,167.05,8.28339426]
[1730435541951,2.9954,167.1,167.05,11.27949426]
[1730435542656,11.27869426,167.11,167.06,2.9959]
[1730435545558,2.9953,167.1,167.06,2.9959]
[1730435552668,2.9953,167.1,167.05,12.53189426]
[1730435556481,11.27869426,167.11,167.06,2.996]
[1730435556666,8.28339426,167.11,167.06,2.996]
[1730435557774,2.9953,167.1,167.05,15.29189426]
[1730435558168,8.28339426,167.11,167.05,12.29569426]
[1730435558366,0.9276,167.16,167.05,12.29569426]
[1730435558367,2.995,167.12,167.07,2.9958]
[1730435559579,8.28339426,167.13,167.06,8.28339426]
[1730435559580,2.9952,167.11,167.06,11.27939426]
[1730435564373,8.28339426,167.18,167.09,8.28339426]
[1730435564575,8.28339426,167.18,167.12,8.28339426]
[1730435565764,8.28339426,167.16,167.11,2.9951]
[1730435565972,8.28339426,167.16,167.1,10.97589426]
[1730435566675,8.28339426,167.15,167.1,10.97589426]
[1730435566870,8.28339426,167.15,167.05,1.2523]
[1730435566871,8.28339426,167.14,167.07,8.28339426]
[1730435567072,8.28339426,167.14,167.08,2.76]
[1730435568270,11.27799426,167.14,167.09,2.9955]
[1730435569074,11.27839426,167.12,167.08,2.76]
[1730435569276,8.28339426,167.12,167.08,2.76]
[1730435570070,11.27839426,167.12,167.08,2.76]
[1730435572480,2.995,167.12,167.08,2.76]
[1730435572885,2.995,167.12,167.07,11.27919426]
[1730435579482,2.995,167.12,167.07,8.28339426]
[1730435579688,2.995,167.12,167.08,2.9957]
[1730435586186,2.9947,167.14,167.09,2.9954]
[1730435586987,2.9969,167.01,166.96,4.49450754]
[1730435587185,8.28339426,167.0,166.96,4.49450754]
[1730435587385,8.28339426,166.98,166.97,1.49845842]
[1730435587981,8.28339426,166.98,166.91,2.9987]
[1730435587982,8.28339426,166.98,166.91,11.28209426]
[1730435588186,8.28339426,166.98,166.91,14.04209426]
[1730435588391,8.28339426,166.97,166.91,14.04209426]
[1730435588588,8.28339426,166.97,166.91,11.04339426]
[1730435588785,8.28339426,166.97,166.91,2.76]
[1730435589181,8.28339426,166.97,166.9,2.681]
[1730435589382,2.9979,166.96,166.9,2.681]
[1730435589890,8.28339426,166.97,166.9,2.681]
[1730435590086,11.28099426,166.98,166.91,8.28339426]
[1730435591295,11.28099426,166.98,166.91,11.28209426]
[1730435591693,8.28339426,166.98,166.93,8.28339426]
[1730435593595,8.28339426,166.98,166.92,2.9984]
[1730435594691,8.28339426,166.98,166.94,2.9981]
[1730435594881,8.28339426,166.98,166.93,8.28339426]
[1730435595288,8.28339426,166.98,166.93,11.28169426]
[1730435595593,8.28339426,166.96,166.91,8.28339426]
[1730435595785,8.28339426,166.95,166.9,5.6798]
[1730435600097,8.28339426,166.95,166.9,2.681]
[1730435600290,8.28339426,166.95,166.91,2.9987]
[1730435602094,8.28339426,166.95,166.9,2.681]
[1730435602303,8.28339426,166.91,166.84,11.04339426]
[1730435602499,8.28339426,166.89,166.84,11.04339426]
[1730435603193,8.28339426,166.89,166.86,2.9995]
[1730435605184,8.28339426,166.89,166.84,11.04339426]
[1730435605185,8.28339426,166.87,166.81,8.28339426]
[1730435605398,8.28339426,166.86,166.8,8.28339426]
[1730435605696,8.28339426,166.86,166.81,2.76]
[1730435605996,2.76,166.91,166.78,8.28339426]
[1730435605997,8.28339426,166.84,166.78,8.28339426]
[1730435606201,8.28339426,166.84,166.79,2.76]
[1730435606391,8.28339426,166.84,166.81,3.0005]
[1730435608094,8.28339426,166.84,166.78,8.28339426]
[1730435608296,8.28339426,166.83,166.79,3.0007]
[1730435609493,8.28339426,166.83,166.77,11.04339426]
[1730435609696,8.28339426,166.84,166.8,3.0006]
[1730435610809,8.28339426,166.83,166.8,3.0006]
[1730435613399,8.28339426,166.83,166.81,3.0005]
[1730435613599,8.28339426,166.85,166.79,8.28339426]
[1730435614397,8.28339426,166.84,166.79,8.28339426]
[1730435614598,8.28339426,166.84,166.77,11.04339426]
[1730435614796,8.28339426,166.84,166.81,3.0004]
[1730435617408,8.28339426,166.84,166.8,3.0007]
[1730435617904,8.28339426,166.82,166.8,3.0007]
[1730435626011,8.28339426,166.81,166.79,3.0008]
[1730435627420,8.28339426,166.83,166.8,3.0007]
[1730435629025,8.28339426,166.82,166.8,3.0007]
[1730435631813,8.28339426,166.84,166.79,8.28339426]
[1730435632617,8.28339426,166.84,166.82,3.0003]
[1730435633926,8.28339426,166.83,166.82,3.0003]
[1730435638521,8.28339426,166.85,166.82,3.0003]
[1730435645039,8.28339426,166.85,166.83,3.0]
[1730435647032,8.28339426,166.85,166.79,11.18339426]
[1730435647235,8.28339426,166.86,166.81,8.28339426]
[1730435648234,8.28339426,166.88,166.85,2.9996]
[1730435650037,8.28339426,166.86,166.85,2.9996]
[1730435654542,8.28339426,166.88,166.85,2.9996]
[1730435654947,8.28339426,166.88,166.8,8.28339426]
[1730435655553,8.28339426,166.88,166.85,2.9997]
[1730435657140,8.28339426,166.88,166.82,1.2663]
[1730435657141,8.28339426,166.88,166.86,2.9996]
[1730435659138,2.9988,166.91,166.86,8.28339426]
[1730435659139,8.28339426,166.91,166.86,8.28339426]
[1730435659334,8.28339426,166.91,166.9,2.9989]
[1730435659538,2.998,166.95,166.9,2.9989]
[1730435659539,8.28339426,166.93,166.9,2.9989]
[1730435662752,8.28339426,166.94,166.89,8.28339426]
[1730435662947,8.28339426,166.94,166.89,10.93889426]
[1730435663155,8.28339426,166.94,166.9,2.9989]
[1730435663341,8.28339426,166.94,166.89,10.93889426]
[1730435664047,8.28339426,166.94,166.89,2.6555]
[1730435664248,8.28339426,166.93,166.89,2.6555]
[1730435664461,8.28339426,166.93,166.9,2.999]
[1730435664863,2.8,167.0,166.85,8.28339426]
[1730435664864,8.28339426,166.91,166.85,8.28339426]
[1730435665055,8.28339426,166.91,166.87,2.9996]
[1730435665852,11.28239426,166.91,166.87,2.9996]
[1730435666658,8.28339426,166.89,166.86,2.8]
[1730435668146,11.28279426,166.89,166.86,2.8]
[1730435668571,8.28339426,166.89,166.86,2.8]
[1730435670063,8.28339426,166.89,166.84,5.8002]
[1730435670064,8.28339426,166.88,166.84,5.8002]
[1730435671752,8.28339426,166.88,166.84,2.8]
[1730435671955,8.28339426,166.88,166.85,3.0]
[1730435673863,8.28339426,166.89,166.84,2.8]
[1730435674062,2.8,166.96,166.84,2.8]
[1730435674063,8.28339426,166.93,166.86,8.28339426]
[1730435674261,8.28339426,166.93,166.88,8.28339426]
[1730435675356,11.28209426,166.93,166.89,2.9992]
[1730435678865,8.28339426,166.93,166.89,2.9992]
[1730435679062,8.28339426,166.93,166.88,11.06339426]
[1730435679063,8.28339426,166.94,166.92,2.9987]
[1730435681476,8.28339426,166.95,166.92,2.9987]
[1730435688169,8.28339426,166.94,166.92,2.9987]
[1730435692168,8.28339426,166.95,166.93,2.9987]
[1730435698881,8.28339426,166.95,166.92,2.78]
[1730435699180,8.28339426,166.95,166.92,5.7788]
[1730435703775,8.28339426,166.94,166.91,2.78]
[1730435705881,8.28339426,166.93,166.9,2.9991]
[1730435706080,8.28339426,166.93,166.89,8.4526]
[1730435707389,11.28219426,166.93,166.89,8.4526]